[Event "Titled Tuesday Blitz March 28 Early 2023"]
[White "Vedder, Richard"]
[Black "Karamsetty, Jeevan"]
[WhiteFideId "1004166"]
[BlackFideId "2025337"]
[WhiteElo "2168"]
[BlackElo "2111"]
[Result "0-1"]
[Round "11"]
[TimeControl "180+2"]
[Date "2023.03.28"]
[WhiteClock "0:00:18"]
[BlackClock "0:00:05"]

1. d4 {[%clk 0:02:54]}  Nf6 {[%clk 0:02:57]} 2. c4 {[%clk 0:02:52]}  e6 {[%clk 0:02:56]} 3. Nc3 {[%clk 0:02:52]}  d5 {[%clk 0:02:57]} 4. cxd5 {[%clk 0:02:51]}  exd5 {[%clk 0:02:54]} 5. Bg5 {[%clk 0:02:51]}  c6 {[%clk 0:02:52]} 6. e3 {[%clk 0:02:51]}  h6 {[%clk 0:02:51]} 7. Bh4 {[%clk 0:02:50]}  Be7 {[%clk 0:02:48]} 8. Bd3 {[%clk 0:02:50]}  O-O {[%clk 0:02:46]} 9. Qc2 {[%clk 0:02:50]}  Nbd7 {[%clk 0:02:43]} 10. Nge2 {[%clk 0:02:50]}  a6 {[%clk 0:02:38]} 11. O-O {[%clk 0:02:50]}  Nb6 {[%clk 0:02:38]} 12. f3 {[%clk 0:02:46]}  Re8 {[%clk 0:02:33]} 13. Rae1 {[%clk 0:02:44]}  Nc4 {[%clk 0:02:31]} 14. Bxc4 {[%clk 0:02:40]}  dxc4 {[%clk 0:02:31]} 15. e4 {[%clk 0:02:41]}  b5 {[%clk 0:02:25]} 16. e5 {[%clk 0:02:36]}  Nd5 {[%clk 0:02:24]} 17. Bxe7 {[%clk 0:02:37]}  Qxe7 {[%clk 0:02:24]} 18. Nxd5 {[%clk 0:02:35]}  cxd5 {[%clk 0:02:24]} 19. f4 {[%clk 0:02:34]}  f5 {[%clk 0:02:09]} 20. a3 {[%clk 0:02:16]}  a5 {[%clk 0:02:03]} 21. Nc3 {[%clk 0:02:13]}  Qb7 {[%clk 0:01:53]} 22. a4 {[%clk 0:02:04]}  b4 {[%clk 0:01:51]} 23. Nb5 {[%clk 0:02:04]}  Qc6 {[%clk 0:01:39]} 24. Kh1 {[%clk 0:01:54]}  Be6 {[%clk 0:01:37]} 25. g4 {[%clk 0:01:52]}  Rf8 {[%clk 0:01:29]} 26. g5 {[%clk 0:01:45]}  hxg5 {[%clk 0:01:24]} 27. fxg5 {[%clk 0:01:45]}  g6 {[%clk 0:01:25]} 28. Nd6 {[%clk 0:01:41]}  Kg7 {[%clk 0:01:18]} 29. Rf4 {[%clk 0:01:24]}  b3 {[%clk 0:01:06]} 30. Qf2 {[%clk 0:01:10]}  Qxa4 {[%clk 0:01:04]} 31. Kg2 {[%clk 0:01:07]}  Rh8 {[%clk 0:00:56]} 32. h4 {[%clk 0:01:07]}  Qc6 {[%clk 0:00:44]} 33. Rh1 {[%clk 0:01:03]}  Rh5 {[%clk 0:00:32]} 34. Qe2 {[%clk 0:00:51]}  c3 {[%clk 0:00:28]} 35. bxc3 {[%clk 0:00:39]}  a4 {[%clk 0:00:27]} 36. Qb5 {[%clk 0:00:23]}  Qxb5 {[%clk 0:00:22]} 37. Nxb5 {[%clk 0:00:24]}  a3 {[%clk 0:00:19]} 38. Nc7 {[%clk 0:00:24]}  Rb8 {[%clk 0:00:09]} 39. Nxe6+ {[%clk 0:00:23]}  Kf7 {[%clk 0:00:10]} 40. Nc5 {[%clk 0:00:22]}  b2 {[%clk 0:00:10]} 41. Rff1 {[%clk 0:00:20]}  a2 {[%clk 0:00:09]} 42. Na4 {[%clk 0:00:17]}  Rxh4 {[%clk 0:00:04]} 43. Nxb2 {[%clk 0:00:17]}  Rxb2+ {[%clk 0:00:03]} 44. Kg3 {[%clk 0:00:17]}  Rxh1 {[%clk 0:00:03]} 45. Rxh1 {[%clk 0:00:17]}  Rb1 {[%clk 0:00:04]} 46. Rh7+ {[%clk 0:00:18]}  Kg8 {[%clk 0:00:04]} 47. Ra7 {[%clk 0:00:18]}  a1=Q {[%clk 0:00:05]} 0-1


[Site "https://www.chess.com"]

[Event "Titled Tuesday Blitz March 28 Early 2023"]
[White "Yelisieiev, Yevhenii"]
[Black "Valle Maytin, Luis Enrique"]
[WhiteFideId "14139642"]
[BlackFideId "3503666"]
[WhiteElo "2447"]
[BlackElo "2225"]
[Result "1-0"]
[Round "11"]
[TimeControl "180+2"]
[Date "2023.03.28"]
[WhiteClock "0:00:18"]
[BlackClock "0:00:18"]

1. d4 {[%clk 0:03:00]}  Nf6 {[%clk 0:02:59]} 2. Nf3 {[%clk 0:02:59]}  d5 {[%clk 0:02:59]} 3. e3 {[%clk 0:02:59]}  c6 {[%clk 0:02:58]} 4. Bd3 {[%clk 0:02:59]}  g6 {[%clk 0:02:59]} 5. b3 {[%clk 0:02:59]}  Bg7 {[%clk 0:02:59]} 6. Bb2 {[%clk 0:03:00]}  O-O {[%clk 0:03:00]} 7. O-O {[%clk 0:03:00]}  Nbd7 {[%clk 0:03:00]} 8. Nbd2 {[%clk 0:03:00]}  Re8 {[%clk 0:02:59]} 9. c4 {[%clk 0:02:58]}  e5 {[%clk 0:02:26]} 10. dxe5 {[%clk 0:01:55]}  Ng4 {[%clk 0:02:25]} 11. cxd5 {[%clk 0:01:55]}  cxd5 {[%clk 0:02:24]} 12. Bb5 {[%clk 0:01:52]}  Ngxe5 {[%clk 0:02:17]} 13. Nxe5 {[%clk 0:01:51]}  Nxe5 {[%clk 0:02:06]} 14. Bxe8 {[%clk 0:01:48]}  Qxe8 {[%clk 0:02:07]} 15. Bd4 {[%clk 0:01:27]}  Bg4 {[%clk 0:02:02]} 16. f3 {[%clk 0:01:27]}  Be6 {[%clk 0:01:55]} 17. Rc1 {[%clk 0:01:26]}  a6 {[%clk 0:01:47]} 18. Rc7 {[%clk 0:01:17]}  Rc8 {[%clk 0:01:41]} 19. Rxc8 {[%clk 0:01:15]}  Qxc8 {[%clk 0:01:42]} 20. Qa1 {[%clk 0:01:15]}  f6 {[%clk 0:01:39]} 21. Rc1 {[%clk 0:01:14]}  Qd7 {[%clk 0:01:36]} 22. Qc3 {[%clk 0:01:14]}  Kf7 {[%clk 0:01:28]} 23. Qc7 {[%clk 0:01:11]}  Nc6 {[%clk 0:01:27]} 24. Qxd7+ {[%clk 0:01:10]}  Bxd7 {[%clk 0:01:28]} 25. Bb2 {[%clk 0:01:07]}  Ke6 {[%clk 0:01:26]} 26. Kf2 {[%clk 0:01:07]}  Bf8 {[%clk 0:01:26]} 27. a3 {[%clk 0:01:07]}  Bd6 {[%clk 0:01:26]} 28. g3 {[%clk 0:01:02]}  f5 {[%clk 0:01:26]} 29. b4 {[%clk 0:01:00]}  Ne5 {[%clk 0:01:24]} 30. Bxe5 {[%clk 0:00:55]}  Bxe5 {[%clk 0:01:23]} 31. Nb3 {[%clk 0:00:55]}  b6 {[%clk 0:01:21]} 32. Nd4+ {[%clk 0:00:50]}  Kd6 {[%clk 0:01:21]} 33. f4 {[%clk 0:00:50]}  Bf6 {[%clk 0:01:20]} 34. Ke2 {[%clk 0:00:47]}  h5 {[%clk 0:01:01]} 35. Nf3 {[%clk 0:00:43]}  Bb2 {[%clk 0:00:59]} 36. Rb1 {[%clk 0:00:36]}  Bxa3 {[%clk 0:00:58]} 37. Rb3 {[%clk 0:00:27]}  Bc1 {[%clk 0:00:53]} 38. Nd4 {[%clk 0:00:18]}  a5 {[%clk 0:00:26]} 39. Kd1 {[%clk 0:00:16]}  a4 {[%clk 0:00:17]} 40. Rb1 {[%clk 0:00:12]}  Ba3 {[%clk 0:00:17]} 41. Nc2 {[%clk 0:00:12]}  Bxb4 {[%clk 0:00:14]} 42. Rxb4 {[%clk 0:00:10]}  b5 {[%clk 0:00:14]} 43. Kd2 {[%clk 0:00:10]}  Kc5 {[%clk 0:00:15]} 44. Kc3 {[%clk 0:00:11]}  Bc6 {[%clk 0:00:14]} 45. Na3 {[%clk 0:00:10]}  Bd7 {[%clk 0:00:14]} 46. Nc2 {[%clk 0:00:10]}  Bc6 {[%clk 0:00:13]} 47. Rb1 {[%clk 0:00:11]}  Bd7 {[%clk 0:00:13]} 48. Nb4 {[%clk 0:00:11]}  Be6 {[%clk 0:00:10]} 49. Nd3+ {[%clk 0:00:11]}  Kb6 {[%clk 0:00:10]} 50. Kb4 {[%clk 0:00:11]}  Bd7 {[%clk 0:00:09]} 51. Ne5 {[%clk 0:00:11]}  Be8 {[%clk 0:00:09]} 52. Rd1 {[%clk 0:00:12]}  Bc6 {[%clk 0:00:08]} 53. Nxg6 {[%clk 0:00:10]}  a3 {[%clk 0:00:06]} 54. Ra1 {[%clk 0:00:09]}  a2 {[%clk 0:00:06]} 55. Rxa2 {[%clk 0:00:09]}  d4 {[%clk 0:00:07]} 56. exd4 {[%clk 0:00:10]}  Be4 {[%clk 0:00:07]} 57. Ne7 {[%clk 0:00:09]}  Bb1 {[%clk 0:00:05]} 58. Re2 {[%clk 0:00:09]}  Be4 {[%clk 0:00:05]} 59. Rxe4 {[%clk 0:00:08]}  fxe4 {[%clk 0:00:06]} 60. Nd5+ {[%clk 0:00:09]}  Kc6 {[%clk 0:00:06]} 61. Ne3 {[%clk 0:00:10]}  Kd6 {[%clk 0:00:06]} 62. Kxb5 {[%clk 0:00:10]}  Kd7 {[%clk 0:00:06]} 63. Kc5 {[%clk 0:00:10]}  Ke7 {[%clk 0:00:07]} 64. Kd5 {[%clk 0:00:11]}  Kf6 {[%clk 0:00:07]} 65. Kxe4 {[%clk 0:00:12]}  h4 {[%clk 0:00:08]} 66. f5 {[%clk 0:00:13]}  h3 {[%clk 0:00:09]} 67. Kf4 {[%clk 0:00:13]}  Ke7 {[%clk 0:00:09]} 68. Kg4 {[%clk 0:00:14]}  Kf7 {[%clk 0:00:10]} 69. Kxh3 {[%clk 0:00:14]}  Kf6 {[%clk 0:00:10]} 70. Kg4 {[%clk 0:00:15]}  Kg7 {[%clk 0:00:11]} 71. Kf4 {[%clk 0:00:16]}  Kf7 {[%clk 0:00:12]} 72. g4 {[%clk 0:00:16]}  Kf6 {[%clk 0:00:13]} 73. g5+ {[%clk 0:00:17]}  Kf7 {[%clk 0:00:14]} 74. Ke5 {[%clk 0:00:18]}  Ke7 {[%clk 0:00:14]} 75. g6 {[%clk 0:00:18]}  Kf8 {[%clk 0:00:15]} 76. f6 {[%clk 0:00:18]}  Kg8 {[%clk 0:00:16]} 77. Ke6 {[%clk 0:00:18]}  Kf8 {[%clk 0:00:16]} 78. h4 {[%clk 0:00:18]}  Ke8 {[%clk 0:00:16]} 79. h5 {[%clk 0:00:19]}  Kf8 {[%clk 0:00:17]} 80. h6 {[%clk 0:00:19]}  Kg8 {[%clk 0:00:17]} 81. d5 {[%clk 0:00:19]}  Kf8 {[%clk 0:00:18]} 82. d6 {[%clk 0:00:20]}  Kg8 {[%clk 0:00:18]} 83. Nd5 {[%clk 0:00:20]}  Kf8 {[%clk 0:00:18]} 84. Ne7 {[%clk 0:00:18]}  Ke8 {[%clk 0:00:18]} 85. h7 {[%clk 0:00:18]}  Kd8 {[%clk 0:00:18]} 1-0


[Site "https://www.chess.com"]

[Event "Titled Tuesday Blitz March 28 Early 2023"]
[White "Mika, Tomasz"]
[Black "Lehtosaari, Mauri"]
[WhiteFideId "1132970"]
[BlackFideId "501999"]
[WhiteElo "2179"]
[BlackElo "2505"]
[Result "1-0"]
[Round "11"]
[TimeControl "180+2"]
[Date "2023.03.28"]
[WhiteClock "0:00:15"]
[BlackClock "0:00:29"]

1. Nf3 {[%clk 0:03:00]}  d5 {[%clk 0:02:58]} 2. c4 {[%clk 0:03:00]}  c6 {[%clk 0:02:55]} 3. b3 {[%clk 0:03:00]}  Nf6 {[%clk 0:02:55]} 4. Bb2 {[%clk 0:02:56]}  Bg4 {[%clk 0:02:55]} 5. Ne5 {[%clk 0:02:54]}  Bf5 {[%clk 0:02:54]} 6. d3 {[%clk 0:02:54]}  Nbd7 {[%clk 0:02:54]} 7. Nxd7 {[%clk 0:02:48]}  Qxd7 {[%clk 0:02:54]} 8. g3 {[%clk 0:02:48]}  e6 {[%clk 0:02:53]} 9. Bg2 {[%clk 0:02:48]}  Be7 {[%clk 0:02:52]} 10. O-O {[%clk 0:02:48]}  O-O {[%clk 0:02:52]} 11. Nd2 {[%clk 0:02:46]}  a5 {[%clk 0:02:44]} 12. a3 {[%clk 0:02:43]}  h6 {[%clk 0:02:42]} 13. Rc1 {[%clk 0:02:42]}  Rfe8 {[%clk 0:02:40]} 14. Rc2 {[%clk 0:02:40]}  Rad8 {[%clk 0:02:32]} 15. Qa1 {[%clk 0:02:36]}  Bg4 {[%clk 0:02:25]} 16. Re1 {[%clk 0:02:31]}  Rf8 {[%clk 0:02:17]} 17. h3 {[%clk 0:02:27]}  Ne8 {[%clk 0:02:15]} 18. hxg4 {[%clk 0:02:24]}  Bf6 {[%clk 0:02:07]} 19. Nf3 {[%clk 0:02:11]}  Bxb2 {[%clk 0:02:05]} 20. Qxb2 {[%clk 0:02:10]}  Qd6 {[%clk 0:01:58]} 21. g5 {[%clk 0:02:05]}  h5 {[%clk 0:01:55]} 22. c5 {[%clk 0:02:00]}  Qe7 {[%clk 0:01:49]} 23. Qd4 {[%clk 0:01:57]}  g6 {[%clk 0:01:48]} 24. Qf4 {[%clk 0:01:50]}  Ng7 {[%clk 0:01:45]} 25. g4 {[%clk 0:01:48]}  Rfe8 {[%clk 0:01:36]} 26. Ne5 {[%clk 0:01:42]}  d4 {[%clk 0:01:29]} 27. b4 {[%clk 0:01:39]}  axb4 {[%clk 0:01:28]} 28. axb4 {[%clk 0:01:39]}  Ra8 {[%clk 0:01:26]} 29. Nc4 {[%clk 0:01:38]}  Ra4 {[%clk 0:01:20]} 30. Nd6 {[%clk 0:01:35]}  Rea8 {[%clk 0:01:19]} 31. Qf6 {[%clk 0:01:28]}  Qd7 {[%clk 0:01:12]} 32. gxh5 {[%clk 0:01:24]}  Nxh5 {[%clk 0:01:12]} 33. Qxd4 {[%clk 0:01:24]}  Qe7 {[%clk 0:01:10]} 34. Qh4 {[%clk 0:01:21]}  Ra1 {[%clk 0:01:04]} 35. Rcc1 {[%clk 0:01:19]}  R1a2 {[%clk 0:01:04]} 36. Ne4 {[%clk 0:01:15]}  Kg7 {[%clk 0:00:58]} 37. Bf3 {[%clk 0:01:12]}  Rh8 {[%clk 0:00:57]} 38. Bxh5 {[%clk 0:01:12]}  Rxh5 {[%clk 0:00:58]} 39. Qf4 {[%clk 0:01:12]}  Ra4 {[%clk 0:00:54]} 40. Qe5+ {[%clk 0:01:09]}  Kf8 {[%clk 0:00:51]} 41. Ra1 {[%clk 0:01:06]}  Ra6 {[%clk 0:00:45]} 42. Rxa6 {[%clk 0:01:01]}  bxa6 {[%clk 0:00:46]} 43. Qd6 {[%clk 0:01:01]}  Qxd6 {[%clk 0:00:42]} 44. cxd6 {[%clk 0:00:55]}  Rh4 {[%clk 0:00:37]} 45. Ra1 {[%clk 0:00:54]}  f5 {[%clk 0:00:37]} 46. gxf6 {[%clk 0:00:53]}  Kf7 {[%clk 0:00:37]} 47. Rxa6 {[%clk 0:00:51]}  e5 {[%clk 0:00:38]} 48. d7 {[%clk 0:00:45]}  Rh8 {[%clk 0:00:36]} 49. Rxc6 {[%clk 0:00:44]}  Rd8 {[%clk 0:00:35]} 50. Rd6 {[%clk 0:00:43]}  g5 {[%clk 0:00:35]} 51. b5 {[%clk 0:00:42]}  g4 {[%clk 0:00:35]} 52. b6 {[%clk 0:00:42]}  g3 {[%clk 0:00:35]} 53. fxg3 {[%clk 0:00:43]}  Kg6 {[%clk 0:00:33]} 54. b7 {[%clk 0:00:41]}  Kf5 {[%clk 0:00:32]} 55. b8=Q {[%clk 0:00:39]}  Rg8 {[%clk 0:00:33]} 56. Kf2 {[%clk 0:00:23]}  Rxb8 {[%clk 0:00:32]} 57. d8=Q {[%clk 0:00:21]}  Rb7 {[%clk 0:00:33]} 58. Qc8+ {[%clk 0:00:21]}  Kg6 {[%clk 0:00:29]} 59. Qxb7 {[%clk 0:00:19]}  Kh5 {[%clk 0:00:29]} 60. Qh7+ {[%clk 0:00:17]}  Kg4 {[%clk 0:00:29]} 61. Qh4+ {[%clk 0:00:16]}  Kf5 {[%clk 0:00:29]} 62. g4+ {[%clk 0:00:15]}  Kf4 {[%clk 0:00:29]} 63. e3# {[%clk 0:00:15]} 1-0


[Site "https://www.chess.com"]

[Event "Titled Tuesday Blitz March 28 Early 2023"]
[White "Novikov, Evgenij"]
[Black "Vadim_Galchenko"]
[WhiteFideId "4125380"]
[WhiteElo "2242"]
[BlackElo "2353"]
[Result "0-1"]
[Round "11"]
[TimeControl "180+2"]
[Date "2023.03.28"]
[WhiteClock "0:00:03"]
[BlackClock "0:00:07"]

1. f4 {[%clk 0:03:00]}  e5 {[%clk 0:02:58]} 2. e4 {[%clk 0:03:00]}  exf4 {[%clk 0:02:57]} 3. Nf3 {[%clk 0:02:59]}  Nf6 {[%clk 0:02:57]} 4. Nc3 {[%clk 0:02:55]}  d5 {[%clk 0:02:54]} 5. exd5 {[%clk 0:02:54]}  Nxd5 {[%clk 0:02:53]} 6. Bc4 {[%clk 0:02:50]}  Be6 {[%clk 0:02:48]} 7. Qe2 {[%clk 0:02:34]}  Be7 {[%clk 0:02:28]} 8. Nxd5 {[%clk 0:02:26]}  Bxd5 {[%clk 0:02:27]} 9. Bxd5 {[%clk 0:02:26]}  Qxd5 {[%clk 0:02:28]} 10. O-O {[%clk 0:02:25]}  Nc6 {[%clk 0:02:25]} 11. d3 {[%clk 0:02:19]}  O-O {[%clk 0:02:14]} 12. Bxf4 {[%clk 0:02:16]}  Rae8 {[%clk 0:02:14]} 13. Qd2 {[%clk 0:02:07]}  Bc5+ {[%clk 0:02:08]} 14. Kh1 {[%clk 0:02:07]}  Re7 {[%clk 0:01:54]} 15. Rfe1 {[%clk 0:01:30]}  Rfe8 {[%clk 0:01:51]} 16. a3 {[%clk 0:01:19]}  a5 {[%clk 0:01:21]} 17. Rxe7 {[%clk 0:01:17]}  Rxe7 {[%clk 0:01:21]} 18. Re1 {[%clk 0:01:17]}  Qd7 {[%clk 0:01:04]} 19. Rxe7 {[%clk 0:01:12]}  Qxe7 {[%clk 0:01:05]} 20. d4 {[%clk 0:01:06]}  Bd6 {[%clk 0:01:05]} 21. Bg5 {[%clk 0:01:02]}  Qe4 {[%clk 0:00:55]} 22. Kg1 {[%clk 0:00:48]}  b6 {[%clk 0:00:30]} 23. Be3 {[%clk 0:00:48]}  h6 {[%clk 0:00:30]} 24. c3 {[%clk 0:00:45]}  Ne7 {[%clk 0:00:30]} 25. Bf2 {[%clk 0:00:42]}  Nd5 {[%clk 0:00:25]} 26. c4 {[%clk 0:00:25]}  Bf4 {[%clk 0:00:13]} 27. Qe1 {[%clk 0:00:23]}  Nf6 {[%clk 0:00:11]} 28. Qxe4 {[%clk 0:00:21]}  Nxe4 {[%clk 0:00:12]} 29. Ne1 {[%clk 0:00:17]}  Nd2 {[%clk 0:00:06]} 30. c5 {[%clk 0:00:16]}  Nc4 {[%clk 0:00:04]} 31. Nd3 {[%clk 0:00:16]}  Bd2 {[%clk 0:00:04]} 32. b4 {[%clk 0:00:14]}  a4 {[%clk 0:00:03]} 33. cxb6 {[%clk 0:00:14]}  cxb6 {[%clk 0:00:04]} 34. d5 {[%clk 0:00:13]}  b5 {[%clk 0:00:04]} 35. Nc5 {[%clk 0:00:08]}  Nxa3 {[%clk 0:00:04]} 36. d6 {[%clk 0:00:08]}  Bg5 {[%clk 0:00:03]} 37. h4 {[%clk 0:00:05]}  Bf6 {[%clk 0:00:03]} 38. d7 {[%clk 0:00:04]}  Nc4 {[%clk 0:00:02]} 39. Ne4 {[%clk 0:00:02]}  Bd8 {[%clk 0:00:02]} 40. Bd4 {[%clk 0:00:02]}  a3 {[%clk 0:00:02]} 41. Kf2 {[%clk 0:00:02]}  Kf8 {[%clk 0:00:03]} 42. Kf3 {[%clk 0:00:03]}  Ke7 {[%clk 0:00:03]} 43. Nc5 {[%clk 0:00:03]}  Kd6 {[%clk 0:00:03]} 44. Bxg7 {[%clk 0:00:03]}  a2 {[%clk 0:00:03]} 45. Bf8+ {[%clk 0:00:03]}  Kc7 {[%clk 0:00:03]} 46. Bg7 {[%clk 0:00:04]}  Be7 {[%clk 0:00:03]} 47. Bd4 {[%clk 0:00:03]}  Bxc5 {[%clk 0:00:03]} 48. bxc5 {[%clk 0:00:04]}  Kxd7 {[%clk 0:00:04]} 49. g4 {[%clk 0:00:04]}  Ke6 {[%clk 0:00:04]} 50. Kf4 {[%clk 0:00:04]}  b4 {[%clk 0:00:03]} 51. g5 {[%clk 0:00:04]}  hxg5+ {[%clk 0:00:04]} 52. Kxg5 {[%clk 0:00:05]}  b3 {[%clk 0:00:04]} 53. h5 {[%clk 0:00:05]}  b2 {[%clk 0:00:05]} 54. Bxb2 {[%clk 0:00:03]}  Nxb2 {[%clk 0:00:05]} 55. h6 {[%clk 0:00:04]}  a1=Q {[%clk 0:00:06]} 56. h7 {[%clk 0:00:05]}  Nc4 {[%clk 0:00:06]} 57. Kh6 {[%clk 0:00:03]}  Qf6+ {[%clk 0:00:07]} 58. Kh5 {[%clk 0:00:03]}  Qg6+ {[%clk 0:00:07]} 0-1


[Site "https://www.chess.com"]

[Event "Titled Tuesday Blitz March 28 Early 2023"]
[White "Vafin, Ayrat"]
[Black "Kucuksari, Kaan"]
[WhiteFideId "4146530"]
[BlackFideId "6380166"]
[WhiteElo "2317"]
[BlackElo "2364"]
[Result "1/2-1/2"]
[Round "11"]
[TimeControl "180+2"]
[Date "2023.03.28"]
[WhiteClock "0:00:13"]
[BlackClock "0:00:11"]

1. Nf3 {[%clk 0:03:00]}  Nf6 {[%clk 0:02:51]} 2. g3 {[%clk 0:03:01]}  b5 {[%clk 0:02:51]} 3. Bg2 {[%clk 0:02:58]}  Bb7 {[%clk 0:02:51]} 4. d3 {[%clk 0:02:57]}  e5 {[%clk 0:02:49]} 5. O-O {[%clk 0:02:56]}  d6 {[%clk 0:02:49]} 6. a4 {[%clk 0:02:54]}  b4 {[%clk 0:02:48]} 7. a5 {[%clk 0:02:54]}  Be7 {[%clk 0:02:47]} 8. Nbd2 {[%clk 0:02:38]}  O-O {[%clk 0:02:46]} 9. e4 {[%clk 0:02:19]}  c5 {[%clk 0:02:46]} 10. Nc4 {[%clk 0:02:19]}  Bc8 {[%clk 0:02:42]} 11. Nh4 {[%clk 0:02:17]}  Nc6 {[%clk 0:02:41]} 12. Nf5 {[%clk 0:02:17]}  Be6 {[%clk 0:02:36]} 13. Bg5 {[%clk 0:02:09]}  h6 {[%clk 0:02:34]} 14. Bxf6 {[%clk 0:01:59]}  Bxf6 {[%clk 0:02:35]} 15. Nfxd6 {[%clk 0:01:57]}  g6 {[%clk 0:02:21]} 16. Qd2 {[%clk 0:01:34]}  Bg7 {[%clk 0:02:18]} 17. Rad1 {[%clk 0:01:17]}  Nxa5 {[%clk 0:02:15]} 18. Nxa5 {[%clk 0:01:12]}  Qxa5 {[%clk 0:02:16]} 19. f4 {[%clk 0:01:08]}  exf4 {[%clk 0:02:14]} 20. gxf4 {[%clk 0:01:08]}  Qb6 {[%clk 0:02:12]} 21. e5 {[%clk 0:01:05]}  Rad8 {[%clk 0:02:08]} 22. Kh1 {[%clk 0:00:58]}  Rxd6 {[%clk 0:02:01]} 23. exd6 {[%clk 0:00:58]}  Bxb2 {[%clk 0:02:01]} 24. f5 {[%clk 0:00:58]}  Bxf5 {[%clk 0:02:01]} 25. Rxf5 {[%clk 0:00:58]}  gxf5 {[%clk 0:02:00]} 26. Qxh6 {[%clk 0:00:58]}  Bg7 {[%clk 0:01:59]} 27. Qf4 {[%clk 0:00:55]}  Rd8 {[%clk 0:01:52]} 28. Qxf5 {[%clk 0:00:52]}  Qxd6 {[%clk 0:01:51]} 29. Be4 {[%clk 0:00:48]}  Qg6 {[%clk 0:01:48]} 30. Qxc5 {[%clk 0:00:41]}  Qd6 {[%clk 0:01:43]} 31. Qf5 {[%clk 0:00:36]}  Qg6 {[%clk 0:01:38]} 32. Qc5 {[%clk 0:00:32]}  Qd6 {[%clk 0:01:31]} 33. Qxa7 {[%clk 0:00:31]}  Bd4 {[%clk 0:01:25]} 34. Qa5 {[%clk 0:00:26]}  Qf6 {[%clk 0:00:59]} 35. Qh5 {[%clk 0:00:24]}  Kf8 {[%clk 0:00:54]} 36. Qh3 {[%clk 0:00:20]}  Ke7 {[%clk 0:00:51]} 37. Rf1 {[%clk 0:00:19]}  Qg5 {[%clk 0:00:40]} 38. Qh7 {[%clk 0:00:16]}  Rf8 {[%clk 0:00:35]} 39. Qh3 {[%clk 0:00:16]}  Rg8 {[%clk 0:00:34]} 40. Qg2 {[%clk 0:00:14]}  f6 {[%clk 0:00:17]} 41. Qxg5 {[%clk 0:00:08]}  Rxg5 {[%clk 0:00:18]} 42. Rb1 {[%clk 0:00:07]}  Bc3 {[%clk 0:00:17]} 43. Rf1 {[%clk 0:00:06]}  Be5 {[%clk 0:00:16]} 44. h3 {[%clk 0:00:06]}  Rg3 {[%clk 0:00:16]} 45. Rf3 {[%clk 0:00:07]}  Rg5 {[%clk 0:00:16]} 46. h4 {[%clk 0:00:07]}  Rg4 {[%clk 0:00:16]} 47. Rh3 {[%clk 0:00:06]}  Kf7 {[%clk 0:00:15]} 48. h5 {[%clk 0:00:07]}  Kg7 {[%clk 0:00:13]} 49. h6+ {[%clk 0:00:07]}  Kh8 {[%clk 0:00:14]} 50. h7 {[%clk 0:00:08]}  Rg5 {[%clk 0:00:13]} 51. Rf3 {[%clk 0:00:07]}  Bd4 {[%clk 0:00:10]} 52. Kh2 {[%clk 0:00:07]}  Be5+ {[%clk 0:00:09]} 53. Kh3 {[%clk 0:00:07]}  Bd4 {[%clk 0:00:09]} 54. Kh4 {[%clk 0:00:08]}  Be5 {[%clk 0:00:09]} 55. Kh3 {[%clk 0:00:08]}  Bd4 {[%clk 0:00:09]} 56. Bf5 {[%clk 0:00:08]}  Be5 {[%clk 0:00:09]} 57. Rf1 {[%clk 0:00:08]}  Bd4 {[%clk 0:00:09]} 58. Be4 {[%clk 0:00:08]}  Be5 {[%clk 0:00:09]} 59. Rd1 {[%clk 0:00:08]}  f5 {[%clk 0:00:09]} 60. Bd5 {[%clk 0:00:08]}  Kxh7 {[%clk 0:00:08]} 61. Bb3 {[%clk 0:00:08]}  Bd4 {[%clk 0:00:08]} 62. Rf1 {[%clk 0:00:08]}  Kg7 {[%clk 0:00:07]} 63. Re1 {[%clk 0:00:08]}  f4 {[%clk 0:00:06]} 64. Re7+ {[%clk 0:00:08]}  Kh6 {[%clk 0:00:05]} 65. Re6+ {[%clk 0:00:08]}  Kh5 {[%clk 0:00:05]} 66. Re8 {[%clk 0:00:07]}  Rg3+ {[%clk 0:00:06]} 67. Kh2 {[%clk 0:00:07]}  Be3 {[%clk 0:00:05]} 68. Rh8+ {[%clk 0:00:07]}  Kg4 {[%clk 0:00:05]} 69. Bd5 {[%clk 0:00:04]}  Bd4 {[%clk 0:00:03]} 70. Rg8+ {[%clk 0:00:04]}  Kh4 {[%clk 0:00:03]} 71. Rxg3 {[%clk 0:00:02]}  fxg3+ {[%clk 0:00:04]} 72. Kg2 {[%clk 0:00:03]}  Kg4 {[%clk 0:00:05]} 73. Bf3+ {[%clk 0:00:03]}  Kf4 {[%clk 0:00:06]} 74. Bd5 {[%clk 0:00:04]}  Ke3 {[%clk 0:00:06]} 75. Bb3 {[%clk 0:00:05]}  Be5 {[%clk 0:00:06]} 76. Ba4 {[%clk 0:00:06]}  Kd4 {[%clk 0:00:06]} 77. Bb3 {[%clk 0:00:07]}  Kc3 {[%clk 0:00:07]} 78. Ba4 {[%clk 0:00:08]}  Kb2 {[%clk 0:00:08]} 79. Bb3 {[%clk 0:00:09]}  Ka3 {[%clk 0:00:08]} 80. Kf3 {[%clk 0:00:09]}  Bd6 {[%clk 0:00:08]} 81. Kg2 {[%clk 0:00:10]}  Kb2 {[%clk 0:00:08]} 82. Kf3 {[%clk 0:00:11]}  Kc1 {[%clk 0:00:09]} 83. Kg2 {[%clk 0:00:12]}  Kd1 {[%clk 0:00:10]} 84. Ba4 {[%clk 0:00:12]}  Kd2 {[%clk 0:00:10]} 85. Bb3 {[%clk 0:00:12]}  Ke3 {[%clk 0:00:10]} 86. Ba4 {[%clk 0:00:12]}  Kd4 {[%clk 0:00:11]} 87. Bb3 {[%clk 0:00:13]}  Bc7 {[%clk 0:00:11]} 88. Kf3 {[%clk 0:00:13]}  Kc3 {[%clk 0:00:11]} 89. Kg2 {[%clk 0:00:13]}  Kd2 {[%clk 0:00:11]} 90. Kf3 {[%clk 0:00:13]}  Kc3 {[%clk 0:00:12]} 91. Kg2 {[%clk 0:00:13]}  Kd4 {[%clk 0:00:12]} 92. Kf3 {[%clk 0:00:13]}  Kc3 {[%clk 0:00:11]} 1/2-1/2


[Site "https://www.chess.com"]